lending/lending_fUSD_20251022
["ID","MTS","AMOUNT","RATE_DAILY","PERIOD"]
[392090682,1761148232861,-150.62,0.00044178,30]
[392090683,1761148232871,-1658.83,0.00044178,30]
[392090684,1761148232885,-352.18,0.00044178,30]
[392090685,1761148232895,-1125.7,0.00044178,30]
[392090686,1761148232905,-168.43,0.00044178,30]
[392090687,1761148232916,-150.0,0.00044178,30]
[392090688,1761148232927,-307.3,0.00044178,30]
[392090689,1761148232937,-150.0,0.00044178,30]
[392090690,1761148232947,-168.43,0.00044178,30]
[392090691,1761148232957,-150.0,0.00044178,30]
[392090692,1761148232966,-150.0,0.00044178,30]
[392090693,1761148232976,-150.0,0.00044178,30]
[392090694,1761148232985,-150.0,0.00044178,30]
[392090695,1761148232995,-560.36,0.00044259,2]
[392090696,1761148233004,-497.98,0.00044358,2]
[392090697,1761148233014,-228.83,0.00044358,2]
[392090698,1761148233025,-150.0,0.00044358,2]
[392090699,1761148233035,-200.0,0.00044358,2]
[392090700,1761148233049,-250.0,0.00044358,120]
[392090701,1761148233060,-5000.0,0.00044358,120]
[392090702,1761148233070,-168.35,0.00044478,30]
[392090703,1761148233081,-413.94,0.00044478,30]
[392090704,1761148233094,-150.0,0.00044478,30]
[392090705,1761148233104,-176.18,0.00044478,30]
[392090706,1761148233115,-2500.0,0.00044659,2]
[392090707,1761148233124,-4610.9444222,0.000447,120]
[392090708,1761148233144,-1040.32404521,0.000447,120]
[392090710,1761148237790,-435.68171857,0.00042,120]
[392090713,1761148238030,-204.18828143,0.00042,120]
[392090714,1761148238040,-1817.77016807,0.000447,120]
[392090715,1761148238148,-2530.96136452,0.000447,120]
[392090716,1761148238158,-8255.03863548,0.000447,120]
[392090717,1761148238168,-1744.96136452,0.000447,120]
[392090718,1761148238178,-179.25919146,0.00044758,120]
[392090719,1761148238188,-301.0926744,0.00044758,120]
[392090720,1761148238197,-1000.0,0.00044758,30]
[392090721,1761148238207,-4388.1072641,0.00044759,2]
[392090722,1761148238244,-1422.41859326,0.00044759,2]
[392090725,1761148238835,-1121.9,0.00044759,2]
[392090726,1761148238850,-62124.45044264,0.00044759,2]
[392090727,1761148238860,-214.0,0.00044788,30]
[392090728,1761148238871,-3083.82323873,0.0004479,3]
[392090729,1761148238881,-1652.92404312,0.00044792,17]
[392090730,1761148238891,-13231.63606,0.000448,120]
[392090731,1761148238903,-13680.21391566,0.000448,120]
[392090732,1761148239094,-10663.15812822,0.000448,120]
[392090733,1761148239104,-775.09979279,0.00044846,15]
[392090734,1761148239114,-266.5122869,0.00044855,3]
[392090735,1761148239126,-2817.31095183,0.00044855,3]
[392090736,1761148239136,-1006.41032052,0.00044865,15]
[392090737,1761148239146,-3083.82323873,0.00044867,3]
[392090738,1761148239156,-1006.41032047,0.00044869,15]
[392090739,1761148239166,-1006.41032047,0.00044873,15]
[392090740,1761148239176,-775.09979279,0.00044873,15]
[392090741,1761148239185,-1415.76359911,0.00044874,3]
[392090747,1761148239932,-1668.05963962,0.00044874,3]
[392090748,1761148239942,-1006.41032047,0.00044877,15]
[392090749,1761148239952,-1006.41032047,0.00044881,15]
[392090750,1761148239961,-497.63510544,0.00044882,3]
[392090751,1761148239974,-1081.95,0.00044882,3]
[392090752,1761148239985,-1504.23813329,0.00044882,3]
[392090753,1761148239995,-275.77490633,0.00044884,120]
[392090754,1761148240007,-1942.9070334,0.00044884,120]
[392090755,1761148240194,-1024.16663422,0.00044884,120]
[392090756,1761148240206,-1757.15142605,0.00044884,120]
[392090757,1761148240216,-1006.41032047,0.00044884,15]
[392090758,1761148240225,-1006.41032047,0.00044888,15]
[392090759,1761148240235,-5329.74457782,0.0004489,3]
[392090760,1761148240246,-15812.19848584,0.0004489,3]
[392090761,1761148240312,-14148.53194453,0.0004489,3]
[392090762,1761148240324,-24077.97030971,0.0004489,3]
[392090763,1761148240340,-9543.74710436,0.0004489,3]
[392090766,1761148242644,10000.0,0.00027397,120]
[392090770,1761148244565,-6.51373187,0.0004489,3]
[392090771,1761148244679,-1.46651382,0.0004489,3]
[392090772,1761148244694,-786.0,0.0004489,3]
[392090773,1761148244706,-41311.46392605,0.0004489,3]
[392090774,1761148244715,-1006.41032047,0.00044892,15]
[392090775,1761148244724,-1006.41032047,0.00044896,15]
[392090776,1761148244733,-696.1,0.000449,30]
[392090777,1761148244743,-696.1,0.000449,30]
[392090778,1761148244752,-475.34,0.000449,30]
[392090779,1761148244762,-696.1,0.000449,30]
[392090780,1761148244771,-475.34,0.000449,30]
[392090781,1761148244781,-475.34,0.000449,30]
[392090782,1761148244791,-696.1,0.000449,30]
[392090783,1761148244802,-696.1,0.000449,30]
[392090784,1761148244812,-475.34,0.000449,30]
[392090785,1761148244821,-696.1,0.000449,30]
[392090786,1761148244831,-475.34,0.000449,30]
[392090787,1761148244841,-475.34,0.000449,30]
[392090788,1761148244851,-696.1,0.000449,30]
[392090789,1761148244861,-475.34,0.000449,30]
[392090790,1761148244870,-239.39,0.000449,30]
[392090791,1761148244880,-150.73,0.000449,30]
[392090792,1761148244889,-1000.0,0.000449,2]
[392090793,1761148244899,-175.96028634,0.000449,120]
[392090794,1761148244909,-212.71113123,0.000449,17]
[392090795,1761148244918,-775.09979279,0.000449,15]
[392090796,1761148244928,-121773.43810811,0.000449,60]
[392090797,1761148244940,-305.48263459,0.000449,60]
[392090798,1761148245389,-9091.9591573,0.000449,60]
[392090799,1761148245399,-1006.41032047,0.000449,15]
[392090800,1761148245409,-184.9,0.000449,120]
[392090801,1761148245421,-1197.54830633,0.000449,2]
[392090802,1761148245430,-170.7914781,0.000449,2]
[392090803,1761148245439,-272.30325244,0.000449,2]
[392090804,1761148245448,-175.70190031,0.000449,2]
[392090805,1761148245458,-682.21,0.00044906,7]
[392090806,1761148245467,-215.71876191,0.0004491,120]
[392090807,1761148245476,-9251.46971619,0.00044955,3]
[392090808,1761148245486,-1988.11621118,0.00044956,120]
[392090809,1761148245495,-1988.11621118,0.00044956,120]
[392090810,1761148245505,-1826.77008944,0.00044958,120]
[392090811,1761148245515,-121470.4424875,0.00044959,120]
[392090812,1761148245525,-2437.90120986,0.00044959,120]
[392090813,1761148245536,-4477.22075767,0.0004496,120]
[392090814,1761148245547,-12283.63710646,0.00044961,120]
[392090815,1761148245558,-1988.11621118,0.00044961,120]
[392090816,1761148245568,-14706.21724496,0.00044966,120]
[392090817,1761148245577,-500.0,0.00044973,2]
[392090818,1761148245587,-500.0,0.00044973,10]
[392090819,1761148245596,-14706.21724496,0.00044974,120]
[392090820,1761148245606,-1826.77008944,0.00044978,120]
[392090821,1761148245615,-1826.77008944,0.00044979,120]
[392090822,1761148245626,-1493.27943047,0.0004498,3]
[392090823,1761148245637,-1205.3551967,0.0004498,10]
[392090825,1761148245647,-14706.21724496,0.0004498,120]
[392090826,1761148245657,-16426.0737352,0.0004498,3]
[392090827,1761148245667,-4477.22075767,0.00044981,120]
[392090828,1761148245676,-121470.4424875,0.00044983,120]
[392090829,1761148245686,-4477.22075767,0.00044984,120]
[392090830,1761148245695,-1826.77008944,0.00044985,120]
[392090831,1761148245705,-12283.63710646,0.00044985,120]
[392090832,1761148245714,-14706.21724496,0.00044985,120]
[392090833,1761148245724,-12283.63710646,0.00044986,120]
[392090834,1761148245734,-2437.90120986,0.00044986,120]
[392090835,1761148245743,-121470.4424875,0.00044987,120]
[392090836,1761148245753,-12283.63710646,0.00044988,120]
[392090837,1761148245763,-121470.4424875,0.00044988,120]
[392090838,1761148245773,-1493.27943047,0.00044989,3]
[392090839,1761148245782,-15000.0,0.0004499,120]
[392090840,1761148245793,-19412.6325961,0.0004499,3]
[392090841,1761148245807,-158.22245016,0.0004499,7]
[392090842,1761148245816,-150.29,0.0004499,2]
[392090843,1761148245825,-150.29,0.0004499,2]
[392090844,1761148245835,-150.29,0.0004499,2]
[392090845,1761148245845,-150.29,0.0004499,2]
[392090846,1761148245854,-150.29,0.0004499,2]
[392090847,1761148245865,-150.29,0.0004499,2]
[392090848,1761148245874,-150.29,0.0004499,2]
[392090849,1761148245883,-150.29,0.0004499,2]
[392090850,1761148245892,-150.29,0.0004499,2]
[392090851,1761148245902,-150.29,0.0004499,2]
[392090853,1761148245912,-150.29,0.0004499,2]
[392090854,1761148245923,-150.29,0.0004499,2]
[392090855,1761148245932,-150.29,0.0004499,2]
[392090856,1761148245943,-150.29,0.0004499,2]
[392090857,1761148245952,-150.29,0.0004499,2]
[392090858,1761148245962,-150.29,0.0004499,2]
[392090859,1761148245971,-150.29,0.0004499,2]
[392090860,1761148245980,-150.29,0.0004499,2]
[392090861,1761148245990,-150.29,0.0004499,2]
[392090862,1761148246000,-150.29,0.0004499,2]
[392090863,1761148246009,-150.29,0.0004499,2]
[392090864,1761148246018,-150.29,0.0004499,2]
[392090865,1761148246028,-150.29,0.0004499,2]
[392090866,1761148246038,-150.29,0.0004499,2]
[392090867,1761148246050,-150.29,0.0004499,2]
[392090868,1761148246059,-150.29,0.0004499,2]
[392090869,1761148246068,-150.29,0.0004499,2]
[392090870,1761148246079,-150.29,0.0004499,2]
[392090871,1761148246088,-150.29,0.0004499,2]
[392090872,1761148246098,-150.29,0.0004499,2]
[392090873,1761148246108,-150.29,0.0004499,2]
[392090874,1761148246118,-150.29,0.0004499,2]
[392090875,1761148246128,-150.29,0.0004499,2]
[392090876,1761148246138,-150.29,0.0004499,2]
[392090877,1761148246147,-150.29,0.0004499,2]
[392090878,1761148246157,-150.29,0.0004499,2]
[392090879,1761148246167,-4477.22075767,0.0004499,120]
[392090880,1761148246176,-2437.90120986,0.0004499,120]
[392090881,1761148246185,-6000.0,0.00044994,120]
[392090882,1761148246195,-1988.11621118,0.00044994,120]
[392090883,1761148246205,-2437.90120986,0.00044996,120]
[392090884,1761148246214,-1000.0,0.00044999,30]
[392090885,1761148246224,-1000.0,0.00044999,30]
[392090886,1761148246234,-1000.0,0.00044999,30]
[392090887,1761148246243,-1000.0,0.00044999,30]
[392090888,1761148246254,-1000.0,0.00044999,30]
[392090889,1761148246263,-999.0,0.00044999,120]
[392090890,1761148246273,-282682.3087747,0.00045,120]
[392090891,1761148246282,-1000000.0,0.00045,120]
[392090892,1761148246292,-1000000.0,0.00045,120]
[392090893,1761148246304,-1000000.0,0.00045,120]
[392090894,1761148246314,-449620.0,0.00045,120]
[392090895,1761148246323,-1000000.0,0.00045,120]
[392090896,1761148246337,-214.2,0.00045,30]
[392090897,1761148246347,-1000.0,0.00045,120]
[392090899,1761148246356,-6277.86,0.00045,30]
[392090900,1761148246366,-1478.32,0.00045,14]
[392090901,1761148246376,-981.06474517,0.00045,120]
[392090902,1761148246386,-154.695347,0.00045,120]
[392090903,1761148246395,-2005.26,0.00045,60]
[392090904,1761148246405,-630.99142866,0.00045,120]
[392090905,1761148246415,-189.959804,0.00045,120]
[392090906,1761148246424,-189.959804,0.00045,120]
[392090907,1761148246433,-189.959801,0.00045,120]
[392090908,1761148246442,-151.0,0.00045,120]
[392090909,1761148246451,-151.0,0.00045,120]
[392090910,1761148246461,-151.0,0.00045,120]
[392090911,1761148246470,-151.0,0.00045,120]
[392090912,1761148246479,-151.0,0.00045,30]
[392090913,1761148246488,-151.0,0.00045,30]
[392090914,1761148246498,-151.0,0.00045,30]
[392090915,1761148246507,-151.0,0.00045,30]
[392090916,1761148246516,-151.0,0.00045,30]
[392090917,1761148246526,-151.0,0.00045,30]
[392090918,1761148246536,-151.0,0.00045,30]
[392090919,1761148246546,-151.0,0.00045,30]
[392090920,1761148246556,-151.0,0.00045,30]
[392090921,1761148246566,-151.0,0.00045,30]
[392090922,1761148246575,-151.0,0.00045,30]
[392090923,1761148246585,-151.0,0.00045,30]
[392090924,1761148246594,-153.15364,0.00045,30]
[392090925,1761148246604,-151.0,0.00045,120]
[392090926,1761148246614,-151.0,0.00045,120]
[392090927,1761148246623,-179.961111,0.00045,120]
[392090928,1761148246632,-189.213063,0.00045,120]
[392090929,1761148246642,-151.0,0.00045,120]
[392090930,1761148246652,-151.0,0.00045,120]
[392090931,1761148246662,-151.0,0.00045,120]
[392090932,1761148246672,-155.805367,0.00045,120]
[392090933,1761148246681,-159.612321,0.00045,120]
[392090934,1761148246690,-153.33427,0.00045,120]
[392090935,1761148246700,-155.119639,0.00045,120]
[392090936,1761148246709,-151.0,0.00045,120]
[392090937,1761148246719,-154.951755,0.00045,120]
[392090938,1761148246728,-151.0,0.00045,120]
[392090939,1761148246738,-151.0,0.00045,14]
[392090940,1761148246747,-156.382599,0.00045,120]
[392090941,1761148246757,-158.578338,0.00045,120]
[392090942,1761148246766,-151.0,0.00045,120]
[392090943,1761148246775,-151.0,0.00045,120]
[392090944,1761148246785,-151.0,0.00045,120]
[392090945,1761148246795,-151.0,0.00045,120]
[392090946,1761148246806,-151.0,0.00045,120]
[392090947,1761148246816,-153.131654,0.00045,120]
[392090948,1761148246825,-151.0,0.00045,120]
[392090949,1761148246834,-151.0,0.00045,120]
[392090950,1761148246844,-151.0,0.00045,120]
[392090951,1761148246853,-151.0,0.00045,120]
[392090952,1761148246863,-181.554853,0.00045,120]
[392090953,1761148246873,-151.0,0.00045,120]
[392090954,1761148246883,-150.29,0.0004503,2]
[392090955,1761148246893,-23777.97030971,0.0004504,2]
[392090956,1761148246902,-166.66,0.00045042,30]
[392090957,1761148246912,-658.39802,0.0004505,26]
[392090958,1761148246921,-152.0,0.00045061,7]
[392090959,1761148246931,-4897.3201724,0.00045092,2]
[392090960,1761148247048,-1117.7451202,0.00045092,2]
[392090961,1761148247064,-421.1723341,0.000451,2]
[392090962,1761148247074,-37667.7061406,0.000451,2]
[392090963,1761148247083,-860.5773832,0.000451,2]
[392090964,1761148247093,-17759.3055966,0.000451,2]
[392090965,1761148247102,-10000.0,0.00045267,120]
[392090966,1761148247111,-10000.0,0.00045267,120]
[392090967,1761148247121,-214.0,0.00045293,2]
[392090968,1761148247130,-212.71113122,0.00045345,19]
[392090969,1761148247140,-150.29,0.0004549,2]
[392090970,1761148247149,-150.29,0.0004549,2]
[392090971,1761148247159,-150.29,0.0004549,2]
[392090972,1761148247169,-150.29,0.0004549,2]
[392090973,1761148247178,-150.0,0.00045492,2]
[392090974,1761148247187,-150.0,0.00045492,2]
[392090975,1761148247196,-150.0,0.00045492,2]
[392090976,1761148247206,-150.0,0.00045492,2]
[392090977,1761148247215,-150.0,0.00045492,2]
[392090978,1761148247225,-156.21851696,0.00045492,2]
[392090979,1761148247234,-150.0,0.00045492,2]
[392090980,1761148247244,-150.0,0.00045492,2]
[392090981,1761148247254,-150.0,0.00045492,2]
[392090982,1761148247263,-150.0,0.00045492,2]
[392090983,1761148247272,-200.0,0.00045492,2]
[392090984,1761148247282,-150.0,0.00045492,2]
[392090985,1761148247292,-200.0,0.00045492,2]
[392090986,1761148247306,-150.0,0.00045492,2]
[392090987,1761148247315,-150.0,0.00045492,2]
[392090988,1761148247325,-150.0,0.00045492,2]
[392090989,1761148247339,-150.0,0.00045492,2]
[392090990,1761148247348,-150.0,0.00045492,2]
[392090991,1761148247357,-150.0,0.00045492,2]
[392090992,1761148247367,-150.0,0.00045492,2]
[392090993,1761148247377,-500.0,0.00045492,2]
[392090994,1761148247386,-150.0,0.00045492,2]
[392090995,1761148247395,-150.0,0.00045492,2]
[392090996,1761148247405,-150.0,0.00045492,2]
[392090997,1761148247415,-150.0,0.00045492,2]
[392090998,1761148247425,-151.0,0.00045499,120]
[392090999,1761148247435,-156.587,0.00045499,120]
[392091000,1761148247444,-162.380719,0.00045499,120]
[392091001,1761148247454,-168.3888056,0.00045499,120]
[392091002,1761148247464,-174.61919141,0.00045499,120]
[392091003,1761148247474,-181.08010149,0.00045499,120]
[392091004,1761148247483,-187.78006525,0.00045499,120]
[392091005,1761148247492,-316.78882131,0.00045499,120]
[392091006,1761148247501,-1000.0,0.00045499,120]
[392091007,1761148247510,-1000.0,0.00045499,120]
[392091008,1761148247520,-1000.0,0.00045499,120]
[392091009,1761148247530,-1000.0,0.00045499,120]
[392091010,1761148247540,-1000.0,0.00045499,120]
[392091011,1761148247553,-1000.0,0.00045499,120]
[392091012,1761148247563,-1000.0,0.00045499,120]
[392091013,1761148247573,-1000.0,0.00045499,120]
[392091014,1761148247584,-1000.0,0.00045499,120]
[392091015,1761148247594,-606.11462318,0.00045499,120]
[392091016,1761148247604,-172947.86650138,0.000455,120]
[392091017,1761148247621,-305263.2027248,0.000455,120]
[392091018,1761148247699,-1293.6764,0.000455,120]
[392091019,1761148248777,-6572.73517463,0.000455,120]
[392091020,1761148248800,-1768.06131891,0.000455,120]
[392091043,1761148681624,2500.0,0.00026329,120]
[392091044,1761148681719,2500.0,0.00025843,120]
[392091045,1761148686630,3599.76375169,0.00026329,120]
[392091070,1761148744259,250.0,0.00017,2]
[392091140,1761149131134,-150.0,0.00023935,2]
[392091141,1761149131156,-122.60716268,0.00023935,2]
[392091151,1761149164646,450.0,0.00027397,120]
[392091161,1761149241090,-161.03,0.00018971,2]
[392091162,1761149241114,-17.36185759,0.00021079,2]
[392091167,1761149304313,-255.53916602,0.0002,2]
[392091168,1761149345172,-5623.458246,0.0002,2]
[392091169,1761149348087,-9121.00258798,0.0002,2]
[392091170,1761149348112,-143.66814241,0.00021079,2]
[392091171,1761149348135,-161.03,0.00023187,2]
[392091172,1761149348157,-165.65727064,0.00023935,2]
[392091173,1761149348178,-71.81283732,0.00023935,2]
[392091174,1761149348200,-161.03,0.00025295,2]
[392091175,1761149348221,-358.12844292,0.00026329,2]
[392091176,1761149348244,-161.03,0.00027403,2]
[392091177,1761149348265,-255.40793084,0.0002775,2]
[392091178,1761149348289,-180.0,0.00028,2]
[392091179,1761149348316,-185.64300025,0.00028153,2]
[392091180,1761149348336,-218.12622997,0.00028253,4]
[392091181,1761149348356,-159.0,0.00028767,40]
[392091182,1761149348378,-161.03,0.0002951,2]
[392091183,1761149348399,-500.0,0.00029628,7]
[392091184,1761149348419,-500.0,0.00029835,7]
[392091185,1761149348440,-500.0,0.00030052,7]
[392091186,1761149348461,-500.0,0.00030198,7]
[392091187,1761149348481,-500.0,0.00030719,7]
[392091188,1761149348502,-500.0,0.00030815,7]
[392091189,1761149348650,-169.0,0.00031,120]
[392091190,1761149348674,-174.0,0.00031,120]
[392091191,1761149348708,-500.0,0.00031018,7]
[392091192,1761149348748,-500.0,0.00031092,7]
[392091193,1761149348771,-1600.0,0.00031289,3]
[392091194,1761149348794,-919.0,0.00031425,3]
[392091195,1761149348814,-150.99,0.00031426,2]
[392091196,1761149348834,-9999.99,0.00031426,2]
[392091197,1761149348853,-9999.99,0.00031426,2]
[392091198,1761149348874,-999.99,0.00031426,2]
[392091199,1761149348893,-1832.76,0.00031426,2]
[392091200,1761149348913,-500.0,0.00031463,7]
[392091201,1761149348934,-500.0,0.00031466,7]
[392091202,1761149348956,-161.03,0.00031618,2]
[392091203,1761149348978,-268.932,0.00031868,30]
[392091204,1761149348999,-151.0,0.00032213,2]
[392091205,1761149349022,-249.68946217,0.00032213,2]
[392091206,1761149349045,-151.0,0.00032213,2]
[392091207,1761149349067,-300.0,0.00032231,3]
[392091208,1761149349093,-500.0,0.00032614,7]
[392091209,1761149349125,-500.0,0.00032806,7]
[392091210,1761149349167,-500.0,0.00032914,7]
[392091211,1761149349190,-500.0,0.00033237,7]
[392091212,1761149349211,-500.0,0.00033419,7]
[392091213,1761149349235,-161.03,0.00033726,2]
[392091214,1761149349256,-1000.0,0.00033817,2]
[392091215,1761149349280,-1151.0,0.00033818,3]
[392091216,1761149349301,-500.0,0.00034066,7]
[392091217,1761149349321,-500.0,0.00034388,7]
[392091218,1761149349349,-170.38650998,0.000344,120]
[392091219,1761149349372,-500.0,0.00034469,7]
[392091220,1761149349395,-500.0,0.00034659,7]
[392091221,1761149349419,-500.0,0.00035142,30]
[392091222,1761149349447,-170.38650998,0.000354,120]
[392091223,1761149349471,-172.03,0.00035486,2]
[392091224,1761149349494,-172.24655932,0.000355,2]
[392091225,1761149349518,-270.5735801,0.00035633,120]
[392091226,1761149349539,-500.0,0.00035719,30]
[392091227,1761149349559,-500.0,0.00035797,30]
[392091228,1761149349580,-161.03,0.00035834,2]
[392091229,1761149349603,-500.0,0.00036137,30]
[392091230,1761149349623,-500.0,0.00036291,30]
[392091231,1761149349644,-500.0,0.00036624,30]
[392091232,1761149349665,-214.8489,0.00036888,7]
[392091233,1761149349685,-500.0,0.0003745,2]
[392091234,1761149349705,-500.0,0.00037571,30]
[392091235,1761149349724,-500.0,0.00037665,30]
[392091236,1761149349747,-161.03,0.00037942,2]
[392091237,1761149349768,-500.0,0.00038033,30]
[392091238,1761149349788,-165.05,0.00038036,2]
[392091239,1761149349809,-500.0,0.00038245,30]
[392091240,1761149349830,-500.0,0.00038272,30]
[392091241,1761149349852,-500.0,0.0003834,30]
[392091242,1761149349876,-500.0,0.00038611,30]
[392091243,1761149349897,-1933.6409,0.00038888,30]
[392091244,1761149349918,-500.0,0.00038914,30]
[392091245,1761149349939,-500.0,0.00038925,30]
[392091246,1761149349960,-559.90380775,0.0003957,30]
[392091247,1761149353111,-150.0,0.00033414,3]
[392091248,1761149353132,-132.47224561,0.0003957,30]
[392091249,1761149353153,-500.0,0.00039574,30]
[392091250,1761149353176,-500.0,0.0003958,30]
[392091251,1761149353197,-5800.0,0.0004,14]
[392091252,1761149353219,-500.0,0.00040593,30]
[392091253,1761149353240,-516.28200309,0.00040782,30]
[392091254,1761149353261,-165.05,0.00041175,2]
[392091255,1761149353282,-476.13251256,0.00041454,2]
[392091256,1761149353303,-500.0,0.00041466,30]
[392091257,1761149353324,-504.00025183,0.00041506,30]
[392091258,1761149353347,-500.0,0.00041705,30]
[392091259,1761149353369,-800.0,0.00041751,30]
[392091260,1761149353393,-475.34,0.00041754,30]
[392091261,1761149353414,-475.34,0.00041754,30]
[392091262,1761149354844,246.17924245,0.00041754,30]
[392091263,1761149367100,-1046.51742146,0.00040919,50]
[392091264,1761149367122,-1124.11023865,0.00040919,50]
[392091265,1761149367143,-1088.6491041,0.00040919,50]
[392091266,1761149367164,-1022.60225622,0.00040919,50]
[392091267,1761149367184,-1111.75899085,0.00040919,50]
[392091268,1761149367205,-1121.94935235,0.00040919,50]
[392091269,1761149367225,-1120.54808027,0.00040919,50]
[392091270,1761149367248,-1125.0017553,0.00040919,50]
[392091271,1761149367269,-229.16075755,0.00041754,30]
[392091272,1761149368239,333.42810602,0.00040919,50]
[392091273,1761149374111,-699.54228678,0.00040919,50]
[392091274,1761149374131,-1110.90776438,0.00040919,50]
[392091275,1761149374152,-1011.1053855,0.00040919,50]
[392091276,1761149374173,-1065.58920274,0.00040919,50]
[392091277,1761149374199,-1048.77203975,0.00040919,50]
[392091278,1761149374221,-300.0,0.00041891,30]
[392091279,1761149374242,-1034.5,0.00041891,30]
[392091280,1761149374263,-185.16,0.00041891,30]
[392091281,1761149374284,-336.58,0.00041891,30]
[392091282,1761149374308,-150.0,0.00041891,30]
[392091283,1761149374330,-176.26,0.00041891,30]
[392091285,1761149374350,-150.0,0.00041891,30]
[392091288,1761149375149,323.45175087,0.00040919,50]
[392091289,1761149379443,183.72,0.00013699,2]
[392091295,1761149432068,-183.72,0.00020187,2]
[392091296,1761149432078,-183.72,0.00026676,2]
[392091297,1761149432088,-198.96000036,0.00030239,120]
[392091298,1761149432196,-101.03999964,0.00030239,120]
[392091299,1761149432205,-183.72,0.00033165,2]
[392091300,1761149432215,-177.246947,0.00035584,120]
[392091301,1761149432226,-366.85952621,0.00035584,120]
[392091302,1761149432236,-524.23682342,0.00035584,2]
[392091303,1761149432247,-364.71866112,0.00035584,2]
[392091304,1761149432258,-183.72,0.00039654,2]
[392091305,1761149432267,-750.28331483,0.00040919,50]
[392091306,1761149432276,-701.27802405,0.00040919,50]
[392091307,1761149432297,-313.09190811,0.00040919,50]
[392091308,1761149432308,-1134.27493911,0.00040919,50]
[392091309,1761149432317,-300.0,0.00041,30]
[392091310,1761149432327,-300.0,0.00041,30]
[392091311,1761149432337,-300.0,0.00041,30]
[392091312,1761149432347,-475.34,0.00041754,30]
[392091313,1761149432358,-150.0,0.00041891,30]
[392091314,1761149432367,-176.26,0.00041891,30]
[392091315,1761149432376,-500.0,0.00042381,30]
[392091316,1761149432387,-500.0,0.00042595,30]
[392091317,1761149432396,-500.0,0.00042622,30]
[392091318,1761149432407,-727.11245817,0.00042646,30]
[392091319,1761149432416,-357.0,0.00042689,90]
[392091320,1761149432426,-357.0,0.00042689,90]
[392091321,1761149432435,-357.0,0.00042689,90]
[392091322,1761149432445,-357.0,0.00042689,90]
[392091323,1761149432454,-357.0,0.00042689,90]
[392091324,1761149432463,-357.0,0.00042689,90]
[392091325,1761149432473,-357.0,0.00042689,90]
[392091326,1761149432482,-357.0,0.00042689,90]
[392091327,1761149432492,-336.0,0.00042689,90]
[392091328,1761149432501,-336.0,0.00042689,90]
[392091329,1761149432510,-336.0,0.00042689,90]
[392091330,1761149432519,-336.0,0.00042689,90]
[392091331,1761149432528,-336.0,0.00042689,90]
[392091332,1761149432538,-336.0,0.00042689,90]
[392091333,1761149432547,-336.0,0.00042689,90]
[392091334,1761149432556,-336.0,0.00042689,90]
[392091335,1761149432565,-336.0,0.00042689,90]
[392091336,1761149432576,-336.0,0.00042689,90]
[392091337,1761149432585,-336.0,0.00042689,90]
[392091338,1761149432595,-336.0,0.00042689,90]
[392091340,1761149432604,-336.0,0.00042689,90]
[392091342,1761149432614,-336.0,0.00042689,90]
[392091344,1761149432624,-164.0,0.00042689,90]
[392091345,1761149432634,-164.0,0.00042689,90]
[392091347,1761149432643,-164.0,0.00042689,90]
[392091350,1761149432652,-164.0,0.00042689,90]